bitfinex/quotes_SOLUSD_20260304
["timestamp","ask_amount","ask_price","bid_price","bid_amount"]
[1772658292830,3.9395037,92.673,92.614,3.92174084]
[1772658294948,3.9395037,92.671,92.616,3.92174084]
[1772658297056,37.76761049,92.672,92.615,37.79085461]
[1772658297057,3.9395037,92.669,92.618,3.92174084]
[1772658299427,3.9395037,92.667,92.62,3.92174084]
[1772658301636,3.9395037,92.665,92.622,3.92174084]
[1772658304149,3.9395037,92.705,92.624,3.92174084]
[1772658304453,3.9395037,92.703,92.624,3.92174084]
[1772658306250,3.9395037,92.701,92.626,4.20606398]
[1772658307037,3.9395037,92.701,92.629,4.20606398]
[1772658307438,3.9395037,92.701,92.63,4.82477569]
[1772658307657,3.9395037,92.701,92.651,0.28432314]
[1772658307957,3.9395037,92.701,92.654,3.92174084]
[1772658308934,3.9395037,92.699,92.656,3.92174084]
[1772658310943,3.9395037,92.697,92.658,3.92174084]
[1772658313838,3.9395037,92.696,92.66,3.92174084]
[1772658316774,3.9395037,92.694,92.662,3.92174084]
[1772658317974,3.9395037,92.694,92.661,10.79202685]
[1772658319761,4.11368166,92.692,92.655,10.7927257]
[1772658320371,4.11368166,92.692,92.656,3.93760414]
[1772658320557,4.11368166,92.692,92.655,10.7927257]
[1772658320871,4.11368166,92.692,92.631,3.93760414]
[1772658321075,4.11368166,92.692,92.617,3.93760414]
[1772658321958,4.11368166,92.69,92.619,3.93760414]
[1772658323965,4.11368166,92.682,92.612,3.93760414]
[1772658326468,4.18475145,92.68,92.614,3.9194121]
[1772658327876,4.18475145,92.678,92.616,3.9194121]
[1772658328866,4.18475145,92.676,92.616,3.9194121]
[1772658331584,4.18475145,92.674,92.618,3.9194121]
[1772658334687,4.18475145,92.672,92.62,3.9194121]
[1772658335262,4.18475145,92.672,92.625,0.14216157]
[1772658335464,10.78934875,92.684,92.635,3.9194121]
[1772658337390,4.18475145,92.684,92.637,3.9194121]
[1772658337769,4.18475145,92.684,92.636,10.79493933]
[1772658338683,4.18475145,92.684,92.626,10.79610476]
[1772658339164,4.18475145,92.684,92.627,3.9194121]
[1772658339768,4.18475145,92.682,92.629,3.9194121]
[1772658340286,4.18475145,92.698,92.645,3.9194121]
[1772658340790,4.18475145,92.698,92.629,4.20373524]
[1772658341776,37.75375919,92.706,92.631,4.20373524]
[1772658341777,4.18475145,92.696,92.631,4.20373524]
[1772658343787,4.18475145,92.694,92.633,4.20373524]
[1772658344675,4.18475145,92.694,92.633,4.06157367]
[1772658345479,4.18475145,92.694,92.633,3.9194121]
[1772658345881,4.18475145,92.692,92.635,3.9194121]
[1772658346284,4.18475145,92.703,92.635,3.9194121]
[1772658347783,4.18475145,92.701,92.636,38.0666108]
[1772658347995,4.18475145,92.701,92.655,3.9194121]
[1772658349090,26.96384087,92.717,92.665,3.96685146]
[1772658349091,4.18484822,92.715,92.665,3.96685146]
[1772658349594,4.18484822,92.715,92.644,3.96685146]
[1772658349970,4.18484822,92.713,92.645,10.79389065]
[1772658350478,4.18484822,92.713,92.645,14.76074211]
[1772658351586,4.18484822,92.713,92.645,37.77861729]
[1772658351888,4.18484822,92.713,92.646,3.96685146]
[1772658352095,4.18484822,92.711,92.648,3.96685146]
[1772658352908,4.18484822,92.709,92.648,3.96685146]
[1772658354285,4.18484822,92.707,92.65,3.96685146]
[1772658354688,4.18484822,92.707,92.649,10.79342464]
[1772658354986,4.18484822,92.707,92.65,3.96685146]
[1772658356478,4.18484822,92.707,92.628,97.30171791]
[1772658356479,4.18484822,92.705,92.654,3.96685146]
[1772658358602,4.18484822,92.703,92.656,3.96685146]
[1772658360814,4.18484822,92.701,92.658,3.96685146]
[1772658361310,1e-08,92.725,92.668,3.96685146]
[1772658361519,1e-08,92.725,92.68,3.96685146]
[1772658361690,1e-08,92.725,92.684,3.96685146]
[1772658362181,4.18484822,92.724,92.671,3.96685146]
[1772658362504,4.18484822,92.724,92.673,3.96685146]
[1772658363081,4.18484822,92.722,92.675,3.96685146]
[1772658364095,1e-08,92.725,92.675,3.96685146]
[1772658364291,1e-08,92.725,92.684,0.28432314]
[1772658364499,26.95180288,92.759,92.675,4.2511746]
[1772658364888,26.95180288,92.759,92.678,4.2511746]
[1772658365112,26.95180288,92.759,92.679,37.76475792]
[1772658365288,26.95180288,92.759,92.695,3.96685146]
[1772658365806,10.77981156,92.766,92.697,3.96685146]
[1772658366116,37.72934048,92.766,92.705,3.96685146]
[1772658366718,4.18484822,92.765,92.705,3.96685146]
[1772658367291,4.18484822,92.763,92.707,3.96685146]
[1772658369514,4.18484822,92.761,92.708,10.78655563]
[1772658369708,4.18484822,92.761,92.709,3.96685146]
[1772658371590,0.2,92.77,92.682,97.1058062]
[1772658371591,4.18484822,92.759,92.711,3.96685146]
[1772658372213,4.18484822,92.759,92.696,3.96685146]
[1772658372397,4.18484822,92.759,92.667,3.69383402]
[1772658372398,4.18484822,92.755,92.69,10.78857324]
[1772658372795,4.18484822,92.755,92.691,3.96685146]
[1772658373611,4.18484822,92.753,92.693,3.96685146]
[1772658376532,4.18484822,92.751,92.695,3.96685146]
[1772658379117,4.06105777,92.749,92.695,3.96685146]
[1772658379816,104.9,92.748,92.695,3.96685146]
[1772658380001,4.06105777,92.747,92.696,4.13968379]
[1772658380204,4.06105777,92.745,92.696,4.13968379]
[1772658380803,4.06105777,92.745,92.695,10.78795748]
[1772658381720,4.06105777,92.743,92.695,4.13968379]
[1772658383809,4.06105777,92.741,92.697,4.13968379]
[1772658385907,4.15335148,92.739,92.698,10.78771926]
[1772658388129,4.15335148,92.737,92.699,3.82431617]
[1772658392032,4.15335148,92.735,92.701,3.82431617]
[1772658392242,4.15335148,92.74,92.701,3.82431617]
[1772658392447,10.78294999,92.739,92.701,3.82431617]
[1772658393028,4.15335148,92.738,92.701,3.82431617]
[1772658393614,4.15335148,92.738,92.671,3.82431617]
[1772658393815,4.15335148,92.736,92.672,10.79074585]
[1772658394115,4.15335148,92.736,92.673,3.82431617]
[1772658394309,4.15335148,92.736,92.658,3.82431617]
[1772658396151,37.74195286,92.735,92.659,37.77290926]
[1772658396427,4.15335148,92.734,92.659,37.77290926]
[1772658396632,4.15335148,92.726,92.66,3.82431617]
[1772658397936,4.15335148,92.724,92.662,3.82431617]
[1772658400440,4.15335148,92.715,92.635,3.82431617]
[1772658401234,0.28432314,92.71,92.635,3.82431617]
[1772658401439,4.15335148,92.703,92.636,3.82431617]
[1772658402721,4.15335148,92.703,92.644,3.82431617]
[1772658404130,4.15335148,92.711,92.646,3.82431617]
[1772658404742,4.15335148,92.711,92.654,3.82431617]
[1772658405647,4.15335148,92.718,92.654,3.82431617]
[1772658405835,43.12225905,92.76,92.645,146.00184699]
[1772658405836,4.15335148,92.769,92.664,3.82431617]
[1772658406032,4.15335148,92.769,92.645,232.35297225]
[1772658406033,4.15335148,92.768,92.683,0.28432314]
[1772658406233,4.15335148,92.766,92.702,0.28432314]
[1772658406438,4.15335148,92.766,92.705,3.82431617]
[1772658407250,0.2,92.77,92.706,0.28432314]
[1772658407427,0.2,92.77,92.715,3.82431617]
[1772658407634,0.2,92.77,92.718,0.14216157]
[1772658407941,4.35335148,92.77,92.723,3.82431617]
[1772658408335,4.35335148,92.77,92.695,4.82477569]
[1772658408336,4.35335148,92.77,92.725,3.82431617]
[1772658409439,3.79161757,92.768,92.725,3.82431617]
[1772658409931,0.2,92.77,92.724,37.74643026]
[1772658409932,0.2,92.77,92.733,4.16537953]
[1772658410339,0.2,92.77,92.735,4.16537953]
[1772658410648,0.2,92.77,92.734,37.74235986]
[1772658410649,0.2,92.78,92.743,4.16537953]
[1772658411641,3.79161757,92.779,92.743,4.16537953]
[1772658412254,3.79161757,92.777,92.744,10.78236867]
[1772658412436,3.79161757,92.777,92.745,4.16537953]
[1772658412636,0.2,92.78,92.745,4.16537953]
[1772658413652,14.76984113,92.78,92.745,4.16537953]
[1772658413834,3.99161757,92.78,92.745,4.16537953]
[1772658415267,0.2,92.78,92.747,4.16537953]
[1772658415453,3.79161757,92.799,92.753,4.16537953]
[1772658416036,14.56764876,92.799,92.753,4.16537953]
[1772658416437,3.79161757,92.789,92.753,4.16537953]
[1772658416648,10.77648523,92.795,92.753,4.16537953]
[1772658417650,3.79161757,92.797,92.755,4.16537953]
[1772658419735,3.79161757,92.797,92.754,37.7342217]
[1772658419736,3.99161757,92.79,92.757,4.16537953]
[1772658420954,0.2,92.79,92.757,4.16537953]
[1772658421248,0.2,92.79,92.76,0.28432314]
[1772658421443,43.06934338,92.874,92.768,4.44970267]
[1772658421444,3.79161757,92.836,92.768,4.44970267]
[1772658421946,3.79161757,92.828,92.769,10.77946296]
[1772658422147,3.79161757,92.818,92.754,4.16537953]
[1772658422334,3.69383402,92.832,92.754,10.78118845]
[1772658422335,3.79161757,92.808,92.754,10.78118845]
[1772658422855,3.79161757,92.808,92.715,4.82477569]
[1772658422856,3.79161757,92.808,92.746,10.78213615]
[1772658423154,3.79161757,92.808,92.731,4.16537953]
[1772658423349,3.79161757,92.808,92.732,4.16537953]
[1772658423948,3.79161757,92.798,92.734,4.16537953]
[1772658426463,3.79161757,92.796,92.736,4.16537953]
[1772658427456,3.79161757,92.788,92.735,10.7834151]
[1772658427953,3.79161757,92.788,92.73,10.78394677]
[1772658428267,3.79161757,92.78,92.711,4.16537953]
[1772658428441,3.79161757,92.767,92.711,4.16537953]
[1772658429259,3.79161757,92.767,92.71,0.37804956]
[1772658429457,3.79161757,92.753,92.678,14.95542679]
[1772658429646,177.86305621,92.768,92.678,14.95542679]
[1772658429647,3.79161757,92.747,92.679,4.16537953]
[1772658430538,3.79161757,92.745,92.683,4.16537953]
[1772658432459,3.79161757,92.743,92.683,4.16537953]
[1772658432764,3.79161757,92.735,92.685,4.16537953]
[1772658435155,3.79161757,92.743,92.686,37.76190577]
[1772658435356,3.79161757,92.743,92.687,4.16537953]
[1772658435840,26.9552479,92.747,92.693,4.16537953]
[1772658436159,30.74686547,92.747,92.693,4.16537953]
[1772658436362,3.79161757,92.746,92.693,4.16537953]
[1772658437761,10.78225241,92.745,92.695,4.16537953]
[1772658438672,3.7689525,92.744,92.695,4.16537953]
[1772658439965,10.78248493,92.743,92.697,3.79496363]
[1772658441164,3.7689525,92.743,92.699,3.79496363]
[1772658443851,3.69383402,92.767,92.701,3.79496363]
[1772658443852,3.7689525,92.741,92.701,3.79496363]
[1772658445969,10.78283372,92.74,92.703,3.96676493]
[1772658446263,3.82538386,92.739,92.703,3.96676493]
[1772658446964,3.82538386,92.739,92.682,3.96676493]
[1772658448068,3.82538386,92.737,92.682,3.96676493]
[1772658448372,3.82538386,92.735,92.684,3.96676493]
[1772658450748,37.74235986,92.734,92.685,10.78923234]
[1772658450954,3.82538386,92.733,92.686,3.96676493]
[1772658451874,3.82538386,92.731,92.688,3.96676493]
[1772658453566,3.82538386,92.731,92.68,3.96676493]
[1772658454363,3.82538386,92.729,92.682,3.96676493]
[1772658454765,37.74398791,92.73,92.682,3.96676493]
[1772658454766,10.78399654,92.73,92.682,3.96676493]
[1772658455362,3.82538386,92.729,92.682,3.96676493]
[1772658456671,3.82538386,92.736,92.684,3.96676493]
[1772658459476,3.82538386,92.734,92.686,3.96676493]
[1772658463472,3.82538386,92.732,92.688,3.96676493]
[1772658466182,3.82538386,92.73,92.69,3.96676493]
[1772658469889,104.9,92.75,92.692,3.91635166]
[1772658469890,3.72590361,92.728,92.692,3.91635166]
[1772658470386,3.72590361,92.728,92.685,3.91635166]
[1772658470688,3.72590361,92.728,92.676,3.91635166]
[1772658472483,104.9,92.737,92.669,3.91635166]
[1772658472484,3.72590361,92.726,92.669,3.91635166]
[1772658473071,3.72590361,92.726,92.664,10.79157134]
[1772658473586,3.72590361,92.726,92.665,3.91635166]
[1772658473791,4.01022675,92.723,92.647,3.91635166]
[1772658474279,30.0,92.708,92.647,3.91635166]
[1772658474487,25.90837447,92.708,92.672,3.91635166]
[1772658474670,17.72512341,92.708,92.679,0.08559933]
[1772658474984,17.63858918,92.708,92.664,0.28432314]
[1772658475488,10.78582346,92.715,92.664,0.28432314]
[1772658475886,4.08962703,92.716,92.66,5.10909883]
[1772658476381,4.08962703,92.723,92.662,5.10909883]
[1772658478594,10.78492698,92.722,92.664,5.10909883]
[1772658479968,10.78421955,92.729,92.668,0.28432314]
[1772658480168,4.08962703,92.728,92.668,0.28432314]
[1772658481781,4.08962703,92.773,92.682,0.28432314]
[1772658481987,4.08962703,92.773,92.686,0.28432314]
[1772658482289,4.08962703,92.773,92.711,3.69383402]
[1772658482493,4.08962703,92.773,92.712,0.28432314]
[1772658482667,4.08962703,92.773,92.712,5.10909883]
[1772658482871,4.08962703,92.773,92.707,4.96693726]
[1772658483181,4.08962703,92.773,92.707,8.80293285]
[1772658483591,4.08962703,92.773,92.686,5.10909883]
[1772658483799,4.08962703,92.771,92.698,8.80293285]
[1772658484478,4.08962703,92.767,92.695,10.78806839]
[1772658484666,4.08962703,92.767,92.695,37.75823938]
[1772658484867,4.08962703,92.751,92.676,10.79028011]
[1772658485099,4.08962703,92.747,92.676,10.79028011]
[1772658485592,4.08962703,92.747,92.676,37.76598039]
[1772658485782,4.08962703,92.747,92.677,0.28432314]
[1772658485980,4.08962703,92.745,92.679,0.28432314]
[1772658486177,0.28432314,92.74,92.678,10.79004726]
[1772658486383,4.08962703,92.737,92.678,10.79004726]
[1772658491399,47.93510944,92.786,92.645,5.19207355]
[1772658491400,4.08962703,92.735,92.654,5.10909883]
[1772658493007,4.08962703,92.713,92.653,26.98239668]
[1772658493596,4.08962703,92.711,92.654,5.10909883]
[1772658493889,30.0,92.714,92.658,5.10909883]
[1772658494094,10.78535215,92.719,92.658,8.80293285]
[1772658495687,4.08962703,92.745,92.66,5.10909883]
[1772658498813,4.08962703,92.743,92.662,5.10909883]
[1772658499910,4.08962703,92.738,92.663,10.79179391]
[1772658500216,4.08962703,92.722,92.651,26.98269843]
[1772658500394,4.08962703,92.718,92.651,26.98269843]
[1772658500791,4.08962703,92.709,92.646,10.79377415]
[1772658500988,4.08962703,92.709,92.647,0.28432314]
[1772658501414,4.08962703,92.709,92.646,10.79377415]
[1772658501808,4.08962703,92.704,92.647,0.14216157]
[1772658502203,4.08962703,92.704,92.647,0.28432314]
[1772658502797,4.08962703,92.701,92.647,0.28432314]
[1772658504014,30.0,92.699,92.649,0.28432314]
[1772658504219,4.08962703,92.702,92.649,0.28432314]
[1772658505920,4.08962703,92.7,92.651,0.28432314]
[1772658507923,4.08962703,92.696,92.652,10.79307516]
[1772658510021,4.08962703,92.693,92.63,3.69383402]
[1772658510825,4.08962703,92.693,92.646,10.79377415]
[1772658511020,4.08962703,92.691,92.646,10.79377415]
[1772658511208,4.08962703,92.699,92.647,0.28432314]
[1772658511414,4.08962703,92.696,92.647,0.28432314]
[1772658511918,4.08962703,92.694,92.649,0.28432314]
[1772658513208,4.08962703,92.702,92.649,0.28432314]
[1772658513408,3.69383402,92.727,92.648,10.79354114]
[1772658513409,4.08962703,92.7,92.648,10.79354114]
[1772658513613,4.08962703,92.7,92.649,0.28432314]
[1772658514021,4.08962703,92.698,92.651,0.28432314]
[1772658516011,4.08962703,92.696,92.653,0.28432314]
[1772658518326,4.08962703,92.694,92.655,0.28432314]
[1772658520914,4.08962703,92.692,92.657,0.28432314]
[1772658521825,4.08962703,92.692,92.656,10.79260922]
[1772658522419,4.08962703,92.692,92.63,3.2786322]
[1772658522616,4.08962703,92.692,92.638,10.7947055]
[1772658523224,3.68640731,92.69,92.621,3.2786322]
[1772658523432,3.68640731,92.688,92.622,10.796571]
[1772658523628,3.68640731,92.687,92.622,10.796571]
[1772658524635,3.68640731,92.681,92.623,3.61936912]
[1772658525333,3.68640731,92.679,92.612,0.28432314]
[1772658525521,3.68640731,92.676,92.612,0.28432314]
[1772658526517,3.68640731,92.673,92.611,41.39880386]
[1772658526725,3.68640731,92.673,92.612,0.28432314]
[1772658527331,3.68640731,92.671,92.614,0.28432314]
[1772658527635,3.68640731,92.669,92.614,0.28432314]
[1772658527822,3.68640731,92.669,92.62,0.28432314]
[1772658528737,3.60450907,92.666,92.62,0.28432314]
[1772658529035,3.60450907,92.666,92.614,3.46338037]
[1772658529215,3.60450907,92.666,92.615,3.74770351]
[1772658529416,3.60450907,92.664,92.617,3.74770351]
[1772658531533,3.60450907,92.664,92.619,3.74770351]
[1772658533421,3.60450907,92.664,92.621,3.74770351]
[1772658535943,10.79108978,92.67,92.633,3.46338037]
[1772658536146,14.39559885,92.67,92.633,3.46338037]
[1772658536346,3.60450907,92.669,92.633,3.46338037]
[1772658537042,3.60450907,92.692,92.652,0.28432314]
[1772658537228,3.60450907,92.692,92.653,3.46338037]
[1772658537229,3.60450907,92.691,92.653,3.46338037]
[1772658537934,3.60450907,92.689,92.641,0.28432314]
[1772658538152,3.60450907,92.689,92.628,3.74768387]
[1772658539139,3.60450907,92.689,92.628,0.28432314]
[1772658540146,3.60450907,92.687,92.63,0.28432314]
[1772658541446,3.60450907,92.687,92.63,3.70856089]
[1772658541843,3.60450907,92.687,92.632,3.69383402]
[1772658542036,3.60450907,92.687,92.632,0.28432314]
[1772658542234,3.60450907,92.685,92.633,10.79528893]
[1772658542637,3.60450907,92.685,92.633,14.21002517]
[1772658542937,3.60450907,92.685,92.633,41.1982475]
[1772658543143,3.60450907,92.685,92.641,0.28432314]
[1772658543332,3.60450907,92.685,92.641,3.689667]
[1772658544438,3.60450907,92.683,92.642,10.79424019]
[1772658544633,3.60450907,92.683,92.634,10.79517239]
[1772658545540,3.60450907,92.683,92.635,3.3868815]
[1772658547156,3.60450907,92.681,92.636,10.79493933]
[1772658547954,3.60450907,92.681,92.637,3.36884083]
[1772658549655,3.60450907,92.679,92.638,10.79470627]
[1772658550253,3.60450907,92.679,92.639,3.3512122]
[1772658552143,53.93162572,92.71,92.633,26.98820709]
[1772658552144,3.60450907,92.708,92.651,3.33398621]
[1772658552344,3.60450907,92.708,92.663,3.32552133]
[1772658552935,3.60450907,92.724,92.668,0.28432314]
[1772658553136,3.60450907,92.723,92.673,3.32552133]
[1772658554755,53.91427709,92.74,92.675,3.30888212]
[1772658554756,3.60450907,92.721,92.675,3.30888212]
[1772658556676,37.74805867,92.72,92.675,3.30888212]
[1772658556860,3.60450907,92.719,92.676,10.79028011]
[1772658557061,3.60450907,92.719,92.676,14.08290306]
[1772658558360,53.91427709,92.74,92.677,3.27673515]
[1772658558361,3.60450907,92.717,92.677,3.27673515]
[1772658560253,3.60450907,92.717,92.672,0.28432314]
[1772658560434,3.18514029,92.715,92.672,0.28432314]
[1772658560642,3.18514029,92.715,92.672,3.53790437]
[1772658561448,3.18514029,92.715,92.673,10.79062941]
[1772658561967,3.18514029,92.715,92.674,3.24603988]
[1772658563062,3.18514029,92.713,92.674,3.24603988]
[1772658564540,3.18514029,92.713,92.676,3.22393156]
[1772658566548,3.4303919,92.716,92.684,3.20257633]
[1772658567151,3.4303919,92.716,92.674,3.20257633]
[1772658567349,3.4303919,92.716,92.668,3.47994395]
[1772658568970,3.4303919,92.714,92.67,3.47306833]
[1772658571260,3.4303919,92.712,92.672,0.28432314]
[1772658571967,3.4303919,92.712,92.647,3.69383402]
[1772658571968,3.4303919,92.708,92.62,4.82477569]
[1772658572180,3.4303919,92.708,92.621,3.16858854]
[1772658572354,3.4303919,92.708,92.626,3.44634655]
[1772658572553,3.4303919,92.708,92.626,3.16202341]
[1772658572875,134.82467396,92.713,92.632,3.16202341]
[1772658572876,3.4303919,92.706,92.632,3.16202341]
[1772658573071,0.28432314,92.705,92.632,3.16202341]
[1772658573276,3.4303919,92.698,92.632,3.16202341]
[1772658573871,3.4303919,92.688,92.625,3.15553368]
[1772658574770,3.69383402,92.704,92.625,3.15553368]
[1772658574771,3.4303919,92.682,92.625,13.95165123]
[1772658575067,3.4303919,92.679,92.625,13.95165123]
[1772658575977,91.70649605,92.687,92.616,26.99308568]
[1772658575978,3.4303919,92.677,92.628,3.142777]
[1772658576556,3.4303919,92.677,92.623,10.79644699]
[1772658577064,3.4303919,92.677,92.623,13.93295533]
[1772658578157,3.4303919,92.675,92.624,3.13031168]
[1772658580361,3.4303919,92.673,92.614,3.11214548]
[1772658582279,3.4303919,92.682,92.622,3.10037979]
[1772658582476,3.4303919,92.68,92.624,3.38470293]
[1772658586976,3.4303919,92.678,92.63,0.28432314]
[1772658587177,3.4303919,92.678,92.643,3.07764844]
[1772658587885,10.78937839,92.684,92.643,3.07764844]
[1772658590486,3.05509492,92.708,92.644,10.79400716]
[1772658590691,3.05509492,92.708,92.645,3.05067232]
[1772658593893,3.05509492,92.706,92.647,3.03521893]
[1772658597992,43.14385891,92.714,92.628,3.01543015]
[1772658597993,3.33941806,92.704,92.628,3.01543015]
[1772658598191,3.33941806,92.704,92.632,3.01543015]
[1772658598893,3.33941806,92.702,92.632,3.01543015]
[1772658599094,3.33941806,92.699,92.627,10.79598821]
[1772658599688,3.33941806,92.699,92.627,13.80186165]
[1772658599888,3.33941806,92.697,92.629,10.7957551]
[1772658600394,3.33941806,92.697,92.63,3.00117725]
[1772658604209,3.33941806,92.695,92.631,10.79552201]
[1772658604582,3.33941806,92.695,92.632,2.98292573]
[1772658605811,3.33941806,92.693,92.634,2.97849312]
[1772658606198,3.33941806,92.693,92.604,3.97443004]
[1772658606199,3.33941806,92.693,92.627,13.77441609]
[1772658606515,3.33941806,92.693,92.628,2.97411142]
[1772658606911,3.05509492,92.684,92.623,2.97411142]
[1772658610215,3.05509492,92.682,92.626,0.14216157]
[1772658610394,3.05509492,92.682,92.633,2.95708215]
[1772658611216,3.05509492,92.69,92.643,2.95708215]
[1772658611525,3.05509492,92.69,92.637,2.95294638]
[1772658612610,3.05509492,92.688,92.639,2.94885811]
[1772658613914,104.9,92.713,92.652,3.33418698]
[1772658614115,104.9,92.742,92.662,3.33418698]
[1772658614418,3.69383402,92.754,92.662,3.33418698]
[1772658614713,3.69383402,92.75,92.664,3.33418698]
[1772658614890,57.60249059,92.75,92.664,3.33418698]
[1772658615096,0.28432314,92.749,92.664,3.33418698]
[1772658615502,57.60249059,92.75,92.664,3.33418698]
[1772658615701,0.14216157,92.749,92.664,3.33418698]
[1772658615897,3.05509492,92.746,92.664,3.33418698]
[1772658616096,3.05509492,92.728,92.664,3.33418698]
[1772658617116,3.05509492,92.726,92.666,3.33418698]
[1772658618714,3.05509492,92.726,92.666,2.25479791]
[1772658620016,37.74643026,92.724,92.667,10.79132808]
[1772658620204,3.2419925,92.723,92.667,10.79132808]
[1772658620525,3.2419925,92.721,92.667,37.7696483]
[1772658620823,3.2419925,92.721,92.668,3.29329272]
[1772658624516,3.2419925,92.707,92.643,26.985093]
[1772658626722,3.2419925,92.707,92.642,10.79424019]
[1772658626723,3.13554871,92.705,92.644,2.97859673]
[1772658629625,3.13554871,92.703,92.646,2.97859673]
[1772658632046,3.13554871,92.717,92.652,2.97859673]
[1772658632333,3.13554871,92.717,92.65,3.69383402]
[1772658632334,3.13554871,92.717,92.659,0.28432314]
[1772658632527,3.13554871,92.717,92.672,2.97859673]
[1772658632710,104.9,92.741,92.672,2.97859673]
[1772658632711,3.13554871,92.714,92.672,2.97859673]
[1772658632906,3.13554871,92.714,92.665,2.97859673]
[1772658634120,3.13554871,92.714,92.651,0.28432314]
[1772658634121,3.13554871,92.712,92.667,2.97859673]
[1772658636234,3.13554871,92.71,92.669,2.97859673]
[1772658638037,3.13554871,92.708,92.669,2.97859673]
[1772658638538,3.13554871,92.708,92.67,10.79097874]
[1772658638832,104.9,92.71,92.671,2.97859673]
[1772658639028,10.78643928,92.709,92.671,2.97859673]
[1772658640137,13.92198799,92.709,92.673,2.97859673]
[1772658640338,3.13554871,92.708,92.673,2.97859673]
[1772658644123,3.13554871,92.706,92.675,2.97859673]
[1772658646825,3.13554871,92.704,92.653,2.97859673]
[1772658647143,3.13554871,92.698,92.645,2.97859673]
[1772658647339,3.13554871,92.698,92.612,2.97859673]
[1772658647537,3.13554871,92.698,92.623,2.97859673]
[1772658647845,3.13554871,92.698,92.633,2.97859673]
[1772658649331,2.97471506,92.696,92.635,2.95171174]
[1772658651630,43.14761879,92.705,92.637,2.95171174]
[1772658651631,2.97471506,92.694,92.637,2.95171174]
[1772658652128,2.97471506,92.688,92.637,2.95171174]
[1772658652355,2.97471506,92.688,92.631,10.79541681]
[1772658652832,0.28432314,92.685,92.623,2.95171174]
[1772658653126,3.2590382,92.683,92.623,2.95171174]
[1772658653631,104.9,92.687,92.625,2.95171174]
[1772658653632,2.97471506,92.681,92.625,2.95171174]
[1772658655744,2.97471506,92.679,92.626,10.79610476]
[1772658655950,2.97471506,92.679,92.622,2.95171174]
[1772658657046,2.97471506,92.679,92.613,10.79761186]
[1772658657851,3.2590382,92.677,92.616,2.95171174]
[1772658659044,3.2590382,92.675,92.616,2.95171174]
[1772658661801,2.97471506,92.668,92.618,2.95171174]
[1772658662052,2.97471506,92.666,92.618,2.95171174]
[1772658662259,2.97471506,92.663,92.611,2.95171174]
[1772658662552,2.97471506,92.663,92.611,13.74956512]
[1772658662858,2.97471506,92.663,92.611,2.95171174]
[1772658667037,105.18432314,92.662,92.611,2.95171174]
[1772658667242,2.97471506,92.658,92.61,0.1]
[1772658667462,2.97471506,92.64,92.594,2.95171174]
[1772658667760,2.97471506,92.638,92.601,2.95171174]
[1772658667952,2.97471506,92.638,92.594,2.95171174]
[1772658668860,2.97471506,92.638,92.59,0.1]
[1772658669069,2.97471506,92.628,92.59,0.1]
[1772658669357,2.97471506,92.626,92.59,0.1]
[1772658671059,2.97471506,92.624,92.59,0.1]
[1772658672649,2.97471506,92.608,92.57,0.1]
[1772658673158,2.97471506,92.603,92.57,0.1]
[1772658673561,2.97471506,92.603,92.571,2.95171174]
[1772658675247,26.98530919,92.643,92.573,2.95171174]
[1772658675465,26.98530919,92.643,92.593,2.95171174]
[1772658676966,3.11687663,92.639,92.572,10.80240245]
[1772658677159,2.97471506,92.637,92.572,10.80240245]
[1772658677357,2.97471506,92.635,92.57,0.1]
[1772658678970,2.97471506,92.635,92.573,2.07574762]
[1772658679358,91.75698432,92.636,92.573,2.07574762]
[1772658679359,3.2236474,92.627,92.573,2.07574762]
[1772658680566,3.2236474,92.627,92.575,2.0722087]
[1772658680773,37.78473496,92.63,92.57,0.1]
[1772658680774,3.50797054,92.622,92.57,0.1]
[1772658680960,0.28432314,92.615,92.56,0.1]
[1772658681273,3.2236474,92.608,92.56,0.1]
[1772658681467,3.2236474,92.606,92.56,0.1]
[1772658682077,3.2236474,92.598,92.559,1e-08]
[1772658683375,3.2236474,92.596,92.559,1e-08]
[1772658685479,3.2236474,92.586,92.512,2.15462669]
[1772658685654,3.2236474,92.586,92.516,2.15078414]
[1772658685978,3.2236474,92.586,92.532,2.15078414]
[1772658686567,3.01398357,92.582,92.532,2.15078414]
[1772658687672,3.01398357,92.582,92.523,0.28432314]
[1772658687673,10.80181902,92.577,92.534,2.14323095]
[1772658687855,37.80636658,92.577,92.534,2.14323095]
[1772658688480,30.0,92.575,92.534,2.14323095]
[1772658688872,10.80216907,92.574,92.535,10.80672178]
[1772658689082,10.80216907,92.574,92.536,2.13951929]
[1772658689465,30.0,92.573,92.536,2.13951929]
[1772658690068,10.80216907,92.574,92.536,2.13951929]
[1772658690269,3.01398357,92.573,92.532,0.28432314]
[1772658690574,3.01398357,92.573,92.533,2.13218322]
[1772658690886,3.01398357,92.605,92.544,0.28432314]
[1772658691067,3.01398357,92.603,92.553,2.13218322]
[1772658693279,3.01398357,92.601,92.555,2.12497502]
[1772658695785,3.01398357,92.599,92.555,2.12497502]
[1772658698083,3.01398357,92.597,92.555,2.12497502]
[1772658698686,3.01398357,92.597,92.52,0.28432314]